[Event "Romanian-ch Open 2022"]
[Site "Eforie Nord"]
[Date "2022.02.24"]
[Round "6.24"]
[White "Negrean, Andrei"]
[Black "Popescu, Daniel-Vasilica"]
[Result "0-1"]
[ECO "B40"]
[WhiteElo "1941"]
[BlackElo "2064"]
[Annotator "NA RC"]
[PlyCount "90"]
[EventDate "2022.02.20"]
[EventType "swiss"]
[EventCountry "ROU"]
[SourceTitle "playchess.com"]
[Source "ChessBase"]
[SourceQuality "1"]
[TimeControl "40/5400+30:900+30"]

1. e4 {[%emt 0:00:08]} c5 {[%emt 0:00:03]} 2. Nf3 {[%emt 0:00:19]} e6 {[%emt 0:00:06]} 3. c4 {[%emt 0:00:37]} Nc6 {[%emt 0:00:24]} 4. Nc3 {[%emt 0:00:25]} a6 {[%emt 0:00:27]} 5. Be2 {[%emt 0:03:46]} Nd4 {[%emt 0:01:20]} 6. O-O {[%emt 0:09:27]} Ne7 {[%emt 0:00:41]} 7. d3 {[%emt 0:09:24]} Nec6 {[%emt 0:00:26]} 8. Be3 {[%emt 0:05:02]} Be7 {[%emt 0:02:31]} 9. Re1 {[%emt 0:18:43]} g5 {[%emt 0:04:06]} (9... O-O $15) 10. h3 {[%emt 0:08:25]} d6 {[%emt 0:04:09]} 11. a3 $11 {[%emt 0:08:41]} h5 {[%emt 0:02:24]} 12. Nh2 {[%emt 0:02:29]} Nxe2+ {[%emt 0:00:37]} 13. Qxe2 {[%emt 0:05:37]} Nd4 {[%emt 0:00:35]} 14. Bxd4 {[%emt 0:01:49]} cxd4 {[%emt 0:00:08]} 15. Na2 {[%emt 0:04:02]} Bf6 {[%emt 0:11:00]} 16. Rac1 {[%emt 0:11:37]} b6 {[%emt 0:10:09]} 17. b4 {[%emt 0:02:51]} e5 {[%emt 0:00:30]} 18. c5 {[%emt 0:02:47]} g4 {[%emt 0:00:03]} 19. hxg4 {[%emt 0:01:20]} hxg4 {[%emt 0:01:01]} 20. g3 {[%emt 0:02:12]} Bg5 {[%emt 0:00:30]} 21. Rc2 {[%emt 0:00:31]} Qf6 {[%emt 0:08:43]} 22. Qf1 {[%emt 0:00:43]} b5 {[%emt 0:03:12]} 23. c6 {[%emt 0:00:31]} Be6 {[%emt 0:00:33]} 24. Nc1 {[%emt 0:00:30]} Rc8 {[%emt 0:00:27]} 25. f3 {[%emt 0:00:29]} gxf3 {[%emt 0:00:57]} 26. Qxf3 {[%emt 0:00:31]} Qh6 {[%emt 0:00:08]} 27. Rf1 {[%emt 0:00:33]} Rxc6 {[%emt 0:00:28]} 28. Ng4 {[%emt 0:00:27]} Be3+ {[%emt 0:02:58]} 29. Nxe3 {[%emt 0:00:30]} Rxc2 {[%emt 0:00:09]} 30. Ng4 {[%emt 0:00:16]} Bxg4 {[%emt 0:00:36]} 31. Qxf7+ {[%emt 0:00:07]} Kd8 {[%emt 0:00:07]} 32. Qf6+ {[%emt 0:00:18]} Qxf6 {[%emt 0:00:09]} 33. Rxf6 {[%emt 0:00:03]} Rxc1+ {[%emt 0:00:10]} 34. Kg2 {[%emt 0:00:04]} Ke7 {[%emt 0:00:19]} 35. Rf2 {[%emt 0:00:12]} Rf8 {[%emt 0:00:14]} 36. Rxf8 {[%emt 0:00:11]} Kxf8 {[%emt 0:00:07]} 37. Kf2 {[%emt 0:00:07]} Rc2+ {[%emt 0:00:05]} 38. Ke1 {[%emt 0:00:05]} Bf3 {[%emt 0:00:10]} 39. g4 {[%emt 0:00:07]} Kg7 {[%emt 0:00:07]} 40. g5 {[%emt 0:00:00]} Kg6 {[%emt 0:00:00]} 41. Kf1 {[%emt 0:00:13]} Kxg5 {[%emt 0:00:10]} 42. a4 {[%emt 0:00:10]} Kg4 {[%emt 0:00:12]} 43. a5 {[%emt 0:00:09]} Kg3 {[%emt 0:00:14]} 44. Ke1 {[%emt 0:00:03]} Rb2 {[%emt 0:00:10]} 45. Kf1 {[%emt 0:00:06]} Rb1# {[%emt 0:00:07]} 0-1

[Event "Romanian-ch Open 2022"]
[Site "Eforie Nord"]
[Date "2022.02.24"]
[Round "6.25"]
[White "Butolo, Alexandru-Mircea"]
[Black "Veress, Armand"]
[Result "0-1"]
[ECO "B11"]
[WhiteElo "1850"]
[BlackElo "2034"]
[Annotator "NA RC"]
[PlyCount "50"]
[EventDate "2022.02.20"]
[EventType "swiss"]
[EventCountry "ROU"]
[SourceTitle "playchess.com"]
[Source "ChessBase"]
[SourceQuality "1"]
[TimeControl "40/5400+30:900+30"]

1. e4 {[%emt 0:00:01]} c6 {[%emt 0:00:10]} 2. Nf3 {[%emt 0:02:18]} d5 {[%emt 0:00:12]} 3. Nc3 {[%emt 0:00:34]} Bg4 {[%emt 0:00:08]} 4. h3 {[%emt 0:03:15]} Bxf3 {[%emt 0:00:23]} 5. Qxf3 {[%emt 0:00:33]} e6 {[%emt 0:00:15]} 6. d4 {[%emt 0:06:57]} Qb6 {[%emt 0:05:49]} 7. exd5 {[%emt 0:07:46]} cxd5 {[%emt 0:00:22]} 8. Bb5+ {[%emt 0:01:42]} (8. Ne2 {might be stronger.}) 8... Nc6 {[%emt 0:00:23]} 9. O-O {[%emt 0:02:06]} Nf6 {[%emt 0:17:10]} 10. a4 {[%emt 0:14:41]} (10. Qg3 $11) 10... Qxd4 $15 {[%emt 0:31:57]} 11. a5 {[%emt 0:06:32]} a6 {[%emt 0:11:46]} 12. Bg5 {[%emt 0:16:32]} Be7 {[%emt 0:11:29]} 13. Rfd1 {[%emt 0:13:13]} Qc5 {[%emt 0:03:49]} 14. b4 {[%emt 0:03:31]} Qd6 {[%emt 0:02:44]} 15. Bf4 {[%emt 0:11:26]} Qd7 {[%emt 0:00:38]} 16. Ba4 {[%emt 0:00:04]} Bxb4 {[%emt 0:02:27]} 17. Rab1 {[%emt 0:03:24]} Bxa5 {[%emt 0:01:29]} 18. Be5 {[%emt 0:00:23]} Bd8 {[%emt 0:01:54]} 19. Qg3 {[%emt 0:03:41]} b5 {[%emt 0:02:05]} 20. Nxb5 {[%emt 0:00:40]} axb5 {[%emt 0:00:06]} 21. Bxb5 {[%emt 0:00:03]} O-O {[%emt 0:01:59]} 22. Qc3 {[%emt 0:00:40]} Rc8 {[%emt 0:00:18]} 23. Ba6 {[%emt 0:00:10]} Ne4 {[%emt 0:01:22]} 24. Bxc8 {[%emt 0:00:20]} Nxc3 {[%emt 0:00:08]} 25. Bxd7 {[%emt 0:00:05]} Nxe5 {[%emt 0:00:04]} 0-1

[Event "Romanian-ch Open 2022"]
[Site "Eforie Nord"]
[Date "2022.02.24"]
[Round "6.26"]
[White "Pirvulescu, Adrian"]
[Black "Mintau, Andrei-Catalin"]
[Result "0-1"]
[ECO "B01"]
[WhiteElo "1843"]
[BlackElo "2029"]
[Annotator "NA RC"]
[PlyCount "58"]
[EventDate "2022.02.20"]
[EventType "swiss"]
[EventCountry "ROU"]
[SourceTitle "playchess.com"]
[Source "ChessBase"]
[SourceQuality "1"]
[TimeControl "40/5400+30:900+30"]

1. e4 {[%emt 0:00:03]} d5 {[%emt 0:00:06]} 2. exd5 {[%emt 0:00:13]} Nf6 {[%emt 0:00:04]} 3. d4 {[%emt 0:00:08]} Bg4 {[%emt 0:00:04]} 4. f3 {[%emt 0:00:12]} Bf5 {[%emt 0:00:04]} 5. g4 {[%emt 0:00:37]} Bg6 {[%emt 0:00:04]} 6. c4 {[%emt 0:00:37]} c5 {[%emt 0:01:05]} 7. g5 {[%emt 0:27:01]} Nfd7 {[%emt 0:01:05]} 8. Nc3 {[%emt 0:01:03]} ({Better is} 8. h4 $16) 8... Na6 {[%emt 0:00:31]} (8... cxd4 $11 9. Qxd4 Na6) 9. Nb5 {[%emt 0:05:47]} cxd4 {[%emt 0:13:39]} 10. Bf4 $2 {[%emt 0:08:31]} (10. h4 $1 $11 {and White is okay.}) 10... e5 {[%emt 0:08:34]} 11. dxe6 {[%emt 0:03:45]} Bb4+ $17 {[%emt 0:00:35]} 12. Kf2 {[%emt 0:17:48]} fxe6 {[%emt 0:01:04]} 13. a3 {[%emt 0:00:44]} Bc5 {[%emt 0:05:51]} 14. b4 {[%emt 0:01:49]} O-O {[%emt 0:02:56]} 15. Bg3 {[%emt 0:05:33]} Qxg5 {[%emt 0:08:12]} 16. bxc5 {[%emt 0:04:09]} e5 {[%emt 0:00:06]} 17. Nxd4 {[%emt 0:07:02]} exd4 {[%emt 0:01:26]} 18. Qxd4 {[%emt 0:00:20]} Nf6 {[%emt 0:00:33]} 19. Bh4 {[%emt 0:09:03]} Ne4+ 20. Qxe4 {[%emt 0:00:02]} Qd2+ {[%emt 0:04:29]} 21. Qe2 {[%emt 0:00:19]} Qd4+ {[%emt 0:00:04]} 22. Kg3 {[%emt 0:04:10]} Qxa1 {[%emt 0:00:24]} 23. c6 {[%emt 0:00:37]} Rae8 {[%emt 0:00:33]} 24. Be7 {[%emt 0:02:06]} Rf7 {[%emt 0:01:09]} 25. Qe6 {[%emt 0:00:23]} Rexe7 {[%emt 0:00:11]} 26. Qc8+ {[%emt 0:00:29]} Rf8 {[%emt 0:00:04]} 27. cxb7 {[%emt 0:00:25]} Qxf1 {[%emt 0:00:44]} 28. Qc6 {[%emt 0:00:55]} Qe1+ {[%emt 0:00:22]} 29. Kg2 {[%emt 0:00:23]} Qe6 {[%emt 0:00:52]} 0-1

[Event "Romanian-ch Open 2022"]
[Site "Eforie Nord"]
[Date "2022.02.24"]
[Round "6.27"]
[White "Tamas, Christian-Arrydan"]
[Black "Radu, David Cr."]
[Result "0-1"]
[ECO "D02"]
[WhiteElo "1833"]
[BlackElo "1960"]
[Annotator "NA RC"]
[PlyCount "70"]
[EventDate "2022.02.20"]
[EventType "swiss"]
[EventCountry "ROU"]
[SourceTitle "playchess.com"]
[Source "ChessBase"]
[SourceQuality "1"]
[TimeControl "40/5400+30:900+30"]

1. d4 {[%emt 0:00:03]} d5 {[%emt 0:00:58]} 2. Nf3 {[%emt 0:00:13]} e6 {[%emt 0:00:50]} 3. g3 {[%emt 0:00:10]} b6 {[%emt 0:01:18]} 4. Bg2 {[%emt 0:00:45]} Bb7 {[%emt 0:00:46]} 5. O-O {[%emt 0:00:49]} Nd7 {[%emt 0:01:07]} 6. c4 {[%emt 0:07:39]} dxc4 {[%emt 0:02:28]} 7. Qa4 {[%emt 0:13:47]} a6 {[%emt 0:07:13]} 8. Qxc4 {[%emt 0:04:29]} b5 {[%emt 0:01:06]} 9. Qb3 {[%emt 0:06:31]} c5 {[%emt 0:03:24]} 10. a4 {[%emt 0:06:31]} c4 {[%emt 0:01:58]} 11. Qc2 {[%emt 0:02:01]} Ngf6 {[%emt 0:07:08]} 12. axb5 {[%emt 0:13:22]} axb5 {[%emt 0:00:11]} 13. Rxa8 {[%emt 0:00:05]} Qxa8 {[%emt 0:00:11]} 14. b3 {[%emt 0:00:08]} Be4 {[%emt 0:07:01]} 15. Qb2 {[%emt 0:00:26]} Bd6 {[%emt 0:01:04]} 16. bxc4 {[%emt 0:04:59]} bxc4 $16 {[%emt 0:00:09]} 17. Nbd2 {[%emt 0:00:50]} Bd5 {[%emt 0:02:02]} 18. Qc2 {[%emt 0:09:23]} O-O {[%emt 0:02:50]} 19. Re1 {[%emt 0:03:35]} c3 {[%emt 0:15:25]} 20. Qxc3 {[%emt 0:01:30]} Rc8 {[%emt 0:00:07]} 21. Qd3 {[%emt 0:01:59]} Ne4 {[%emt 0:05:25]} 22. Nh4 {[%emt 0:01:44]} Bb4 {[%emt 0:12:01]} 23. Qb5 {[%emt 0:11:55]} Rxc1 {[%emt 0:01:20]} 24. Rxc1 {[%emt 0:00:06]} Bxd2 {[%emt 0:00:07]} 25. Rd1 {[%emt 0:00:56]} Nc3 {[%emt 0:08:17]} 26. Bxd5 {[%emt 0:05:11]} exd5 {[%emt 0:02:11]} 27. Qxd7 {[%emt 0:00:16]} Nxd1 {[%emt 0:00:07]} 28. Nf3 {[%emt 0:00:24]} Bc3 {[%emt 0:03:38]} 29. Ng5 {[%emt 0:01:04]} Bxd4 {[%emt 0:02:15]} 30. Qxf7+ {[%emt 0:00:54]} Kh8 {[%emt 0:00:08]} 31. Qf5 {[%emt 0:00:52]} Bxf2+ {[%emt 0:03:11]} 32. Kh1 {[%emt 0:00:59]} d4+ {[%emt 0:00:23]} 33. Nf3 {[%emt 0:00:27]} Ne3 {[%emt 0:00:18]} 34. Qb1 {[%emt 0:00:12]} d3 {[%emt 0:00:26]} 35. h4 {[%emt 0:00:51]} d2 {[%emt 0:00:54]} 0-1

[Event "Romanian-ch Open 2022"]
[Site "Eforie Nord"]
[Date "2022.02.24"]
[Round "6.28"]
[White "Chis, Bogdan-Vasile"]
[Black "Zaim, Marian"]
[Result "0-1"]
[ECO "B23"]
[WhiteElo "1685"]
[BlackElo "1964"]
[Annotator "NA RC"]
[PlyCount "116"]
[EventDate "2022.02.20"]
[EventType "swiss"]
[EventCountry "ROU"]
[SourceTitle "playchess.com"]
[Source "ChessBase"]
[SourceQuality "1"]
[TimeControl "40/5400+30:900+30"]

1. e4 {[%emt 0:00:19]} c5 {[%emt 0:00:07]} 2. Nc3 {[%emt 0:00:15]} d6 {[%emt 0:00:56]} 3. f4 {[%emt 0:00:07]} e6 {[%emt 0:00:47]} 4. Nf3 {[%emt 0:00:09]} Nf6 {[%emt 0:00:20]} 5. Bb5+ {[%emt 0:00:11]} Nbd7 {[%emt 0:01:24]} 6. d4 {[%emt 0:01:43]} a6 {[%emt 0:03:05]} 7. Bxd7+ {[%emt 0:03:53]} Qxd7 {[%emt 0:07:01]} 8. e5 {[%emt 0:03:06]} cxd4 {[%emt 0:07:26]} 9. Qxd4 {[%emt 0:08:04]} (9. Nxd4 $11 {keeps the balance.} dxe5 10. fxe5) 9... dxe5 {[%emt 0:01:46]} 10. Qxd7+ {[%emt 0:02:25]} Nxd7 {[%emt 0:00:16]} 11. fxe5 {[%emt 0:01:46]} b5 {[%emt 0:02:39]} 12. Bf4 {[%emt 0:01:54]} Bb7 {[%emt 0:02:42]} 13. O-O-O {[%emt 0:01:36]} Bb4 {[%emt 0:06:16]} 14. Rhe1 $17 {[%emt 0:02:56]} ({White should play} 14. Ng5) 14... Bxc3 {[%emt 0:07:07]} 15. bxc3 {[%emt 0:00:03]} Bxf3 {[%emt 0:00:58]} 16. gxf3 {[%emt 0:00:19]} Nb6 {[%emt 0:02:19]} 17. Rd4 {[%emt 0:16:18]} O-O {[%emt 0:02:16]} 18. Red1 {[%emt 0:09:16]} Rfc8 {[%emt 0:02:08]} 19. R1d3 {[%emt 0:00:24]} Nd5 {[%emt 0:01:53]} 20. Bd2 {[%emt 0:06:11]} Rc5 {[%emt 0:03:52]} 21. f4 {[%emt 0:02:04]} Rac8 {[%emt 0:00:18]} 22. Kb2 {[%emt 0:11:27]} h5 {[%emt 0:03:08]} 23. Kb3 {[%emt 0:00:52]} Rc4 {[%emt 0:00:42]} 24. f5 {[%emt 0:05:21]} R4c5 {[%emt 0:07:18]} 25. a4 {[%emt 0:06:03]} R8c7 {[%emt 0:03:38]} 26. fxe6 {[%emt 0:02:53]} fxe6 {[%emt 0:00:12]} 27. a5 {[%emt 0:00:33]} g6 {[%emt 0:05:26]} 28. Rf3 {[%emt 0:01:35]} Kg7 {[%emt 0:00:42]} 29. Rdd3 {[%emt 0:02:22]} Rc4 {[%emt 0:01:20]} 30. Rxd5 {[%emt 0:02:16]} exd5 {[%emt 0:00:18]} 31. Rd3 {[%emt 0:01:26]} Re4 {[%emt 0:01:52]} 32. Rxd5 {[%emt 0:00:29]} Rc6 {[%emt 0:01:20]} 33. Bg5 {[%emt 0:02:21]} Kf7 {[%emt 0:01:10]} 34. Bf6 {[%emt 0:02:14]} Ke6 {[%emt 0:00:14]} 35. Rd3 {[%emt 0:01:12]} g5 {[%emt 0:01:45]} 36. Bxg5 {[%emt 0:01:37]} Rxe5 {[%emt 0:01:17]} 37. h4 {[%emt 0:00:15]} Kf5 {[%emt 0:01:59]} 38. Rd4 {[%emt 0:01:45]} Rec5 {[%emt 0:00:43]} 39. Rf4+ {[%emt 0:00:21]} Kg6 {[%emt 0:00:15]} 40. Rf3 {[%emt 0:00:00]} Rc4 {[%emt 0:00:00]} 41. Bd8 {[%emt 0:07:51]} Rd6 {[%emt 0:04:10]} 42. Bg5 {[%emt 0:02:11]} Rg4 {[%emt 0:02:04]} 43. Rd3 {[%emt 0:01:24]} Rxd3 {[%emt 0:02:39]} 44. cxd3 {[%emt 0:00:06]} Rxg5 {[%emt 0:00:04]} 45. hxg5 {[%emt 0:00:06]} h4 {[%emt 0:00:01]} 46. c4 {[%emt 0:00:15]} bxc4+ {[%emt 0:02:57]} 47. Kxc4 {[%emt 0:00:38]} h3 {[%emt 0:00:09]} 48. Kc5 {[%emt 0:00:17]} h2 {[%emt 0:00:10]} 49. Kb6 {[%emt 0:00:02]} h1=Q {[%emt 0:00:05]} 50. Kxa6 {[%emt 0:00:07]} Qa8+ {[%emt 0:00:06]} 51. Kb6 {[%emt 0:00:24]} Kxg5 {[%emt 0:00:08]} 52. a6 {[%emt 0:00:55]} Kf6 {[%emt 0:00:26]} 53. a7 {[%emt 0:00:06]} Ke5 {[%emt 0:00:18]} 54. Ka6 {[%emt 0:00:33]} Kd4 {[%emt 0:00:06]} 55. Kb6 {[%emt 0:00:05]} Kxd3 {[%emt 0:00:04]} 56. Ka6 {[%emt 0:00:05]} Kd4 {[%emt 0:00:07]} 57. Kb6 {[%emt 0:00:04]} Kd5 {[%emt 0:00:05]} 58. Ka6 {[%emt 0:00:12]} Kc6 {[%emt 0:00:08]} 0-1

[Event "Romanian-ch Open 2022"]
[Site "Eforie Nord"]
[Date "2022.02.24"]
[Round "6.29"]
[White "Dragomirescu, Calin"]
[Black "Visanescu, Dragos-Nicholas"]
[Result "1-0"]
[ECO "E06"]
[WhiteElo "2092"]
[BlackElo "1781"]
[Annotator "NA RC"]
[PlyCount "119"]
[EventDate "2022.02.20"]
[EventType "swiss"]
[EventCountry "ROU"]
[SourceTitle "playchess.com"]
[Source "ChessBase"]
[SourceQuality "1"]
[TimeControl "40/5400+30:900+30"]

1. d4 {[%emt 0:00:03]} d5 {[%emt 0:00:06]} 2. Nf3 {[%emt 0:00:06]} e6 {[%emt 0:00:09]} 3. c4 {[%emt 0:00:07]} Nf6 {[%emt 0:00:04]} 4. g3 {[%emt 0:00:05]} Be7 {[%emt 0:00:07]} 5. Bg2 {[%emt 0:00:07]} O-O {[%emt 0:00:05]} 6. O-O {[%emt 0:00:05]} c6 {[%emt 0:00:05]} 7. Qc2 {[%emt 0:00:21]} b6 {[%emt 0:00:16]} 8. Nbd2 {[%emt 0:00:10]} Bb7 {[%emt 0:00:06]} 9. e4 {[%emt 0:00:10]} Na6 {[%emt 0:01:08]} 10. a3 {[%emt 0:01:38] 10.a3 is better than 10.e5.} c5 {[%emt 0:05:39]} 11. cxd5 {[%emt 0:00:19]} exd5 {[%emt 0:00:39]} 12. e5 {[%emt 0:00:35]} Nd7 {[%emt 0:00:36]} 13. Re1 {[%emt 0:01:37]} Nc7 {[%emt 0:07:26]} 14. Nf1 {[%emt 0:01:54]} Ne6 {[%emt 0:00:40]} 15. Ne3 {[%emt 0:04:27]} g6 {[%emt 1:20:54] [#]} 16. dxc5 $146 {[%emt 0:02:49]} ({Predecessor:} 16. Qd1 Rc8 17. Nc2 Re8 18. Bh6 Bf8 19. Bxf8 Ndxf8 20. Qd2 f5 21. exf6 Qxf6 22. Re3 cxd4 23. Ncxd4 {1-0 (35) Sharavdorj,D (2446)-Al Ali,H (2329) Istanbul 2012}) 16... bxc5 {[%emt 0:00:00]} 17. h4 {[%emt 0:02:05]} Nb6 {[%emt 0:00:00]} 18. h5 {[%emt 0:00:41]} d4 {[%emt 0:00:00]} ({Don't play} 18... gxh5 19. Nf5 $16) 19. Ng4 {[%emt 0:00:11]} d3 {[%emt 0:00:00]} ({Resist} 19... gxh5 20. Nh6+ Kh8 21. Qf5 $14) 20. Qd1 {[%emt 0:04:29]} Rb8 {[%emt 0:00:00]} 21. hxg6 {[%emt 0:03:16]} (21. Bh6 $11) 21... hxg6 {[%emt 0:00:00]} 22. b3 {[%emt 0:05:51]} c4 {[%emt 0:00:00]} 23. bxc4 {[%emt 0:00:53]} Nxc4 {[%emt 0:00:00]} 24. Bh6 {[%emt 0:01:26]} Bxf3 $11 {[%emt 0:00:00]} (24... Nb2 $17 25. Qd2 Bxf3 26. Bxf3 Bg5 27. Bxg5 (27. Nf6+ Qxf6 28. exf6 Bxd2 $15) 27... Qxg5 28. Nf6+ Kg7 29. Qxg5 Nxg5) 25. Qxf3 {[%emt 0:03:08]} d2 {[%emt 0:00:00]} 26. Red1 {[%emt 0:01:58]} Nd4 {[%emt 0:00:00]} 27. Qd5 {[%emt 0:04:37]} Qxd5 {[%emt 0:00:00]} 28. Bxd5 {[%emt 0:00:06]} Rfc8 {[%emt 0:00:00]} 29. Bxd2 {[%emt 0:07:26]} Nb3 {[%emt 0:00:00]} 30. Bf4 {[%emt 0:05:45]} g5 {[%emt 0:00:00]} 31. Be3 {[%emt 0:05:47]} Nxe3 {[%emt 0:00:00]} 32. Nxe3 {[%emt 0:00:18]} Nxa1 {[%emt 0:00:00]} 33. Rxa1 {[%emt 0:00:07]} Rb2 {[%emt 0:00:00]} 34. Rf1 {[%emt 0:03:19]} Rc5 {[%emt 0:00:00]} 35. e6 {[%emt 0:01:23]} f6 {[%emt 0:00:00]} 36. Rd1 {[%emt 0:02:11]} Rbb5 {[%emt 0:00:00]} 37. g4 {[%emt 0:01:47]} Ra5 {[%emt 0:00:00]} 38. Be4 {[%emt 0:00:47]} Ra4 {[%emt 0:04:02]} 39. Bg6 {[%emt 0:01:57]} Rc7 {[%emt 0:01:22]} 40. Rb1 {[%emt 0:00:00]} Bxa3 {[%emt 0:00:00]} 41. Bf7+ {[%emt 0:03:58]} Kh7 {[%emt 0:04:36]} 42. Kg2 {[%emt 0:01:26]} Bc1 {[%emt 0:01:35]} 43. Nd5 {[%emt 0:10:10]} Rxf7 {[%emt 0:07:12]} 44. Rxc1 {[%emt 0:05:39]} Rxg4+ {[%emt 0:05:09]} 45. Kf3 {[%emt 0:00:10]} Rd4 {[%emt 0:01:15]} 46. exf7 {[%emt 0:00:15]} Kg7 {[%emt 0:00:16]} 47. Ne3 {[%emt 0:00:56]} Kxf7 {[%emt 0:00:30]} 48. Rc7+ {[%emt 0:00:04]} Kg6 {[%emt 0:00:14]} 49. Rxa7 {[%emt 0:00:05]} f5 {[%emt 0:00:38]} 50. Ra6+ {[%emt 0:00:25]} Kh5 {[%emt 0:00:14]} 51. Rh6+ {[%emt 0:00:17]} Kxh6 {[%emt 0:00:54]} 52. Nxf5+ {[%emt 0:00:04]} Kh5 {[%emt 0:00:24]} 53. Nxd4 {[%emt 0:00:05]} Kh4 {[%emt 0:00:14]} 54. Kg2 {[%emt 0:01:29]} Kg4 {[%emt 0:00:29]} 55. Nc2 {[%emt 0:01:05]} Kf4 {[%emt 0:00:27]} 56. Ne3 {[%emt 0:00:17]} Ke4 {[%emt 0:01:26]} 57. Kg3 {[%emt 0:00:14]} Kd3 {[%emt 0:00:33]} 58. Kf3 {[%emt 0:01:00]} Kd2 {[%emt 0:02:40]} 59. Ng4 {[%emt 0:00:22]} Kd3 {[%emt 0:01:14]} 60. Ne5+ {[%emt 0:00:10]} 1-0

[Event "Romanian-ch Open 2022"]
[Site "Eforie Nord"]
[Date "2022.02.24"]
[Round "6.30"]
[White "Tudor, Henry Edward"]
[Black "Mazilu, Stefan-Fabian"]
[Result "0-1"]
[ECO "E32"]
[WhiteElo "1879"]
[BlackElo "1886"]
[Annotator "NA RC"]
[PlyCount "70"]
[EventDate "2022.02.20"]
[EventType "swiss"]
[EventCountry "ROU"]
[SourceTitle "playchess.com"]
[Source "ChessBase"]
[SourceQuality "1"]
[TimeControl "40/5400+30:900+30"]

1. d4 {[%emt 0:00:05]} Nf6 {[%emt 0:00:05]} 2. c4 {[%emt 0:00:04]} e6 {[%emt 0:00:03]} 3. Nc3 {[%emt 0:00:03]} Bb4 {[%emt 0:00:03]} 4. Qc2 {[%emt 0:00:05]} O-O {[%emt 0:00:11]} 5. e4 {[%emt 0:00:25]} d6 {[%emt 0:00:06]} 6. Bd3 {[%emt 0:01:34]} Nc6 {[%emt 0:00:09]} 7. Nge2 {[%emt 0:02:20]} Ba5 {[%emt 0:01:35]} 8. a3 {[%emt 0:06:24]} Bb6 {[%emt 0:11:15]} 9. e5 $11 {[%emt 0:31:27]} dxe5 {[%emt 0:16:10]} 10. c5 {[%emt 0:00:27]} exd4 {[%emt 1:05:53]} 11. Na2 {[%emt 0:00:40]} e5 {[%emt 0:00:00]} 12. f3 {[%emt 0:10:07]} h6 {[%emt 0:00:00]} 13. cxb6 {[%emt 0:12:59]} axb6 {[%emt 0:00:00]} 14. O-O {[%emt 0:00:28]} Be6 {[%emt 0:00:00]} 15. Bc4 {[%emt 0:09:13]} Bxc4 {[%emt 0:00:00]} 16. Qxc4 {[%emt 0:00:08]} d3 {[%emt 0:00:00]} 17. Rd1 {[%emt 0:07:53]} dxe2 {[%emt 0:00:00]} 18. Qxe2 {[%emt 0:00:30]} Qe7 {[%emt 0:00:00]} 19. b4 {[%emt 0:01:30]} Rad8 {[%emt 0:00:00]} 20. Bb2 {[%emt 0:00:59]} Rfe8 {[%emt 0:00:00]} 21. Qe3 {[%emt 0:04:27]} Nd5 {[%emt 0:00:00]} 22. Qe4 {[%emt 0:00:28]} Nf6 {[%emt 0:00:00]} 23. Qe3 {[%emt 0:00:05]} Nd4 {[%emt 0:00:00]} 24. Rac1 {[%emt 0:02:28]} Nd5 {[%emt 0:00:00]} 25. Qe4 {[%emt 0:02:21]} f5 {[%emt 0:00:15]} 26. Qe1 {[%emt 0:00:56]} Nf4 {[%emt 0:00:22]} 27. Kh1 {[%emt 0:00:13]} c5 {[%emt 0:00:51]} 28. g3 {[%emt 0:01:13]} Nfe2 {[%emt 0:01:05]} 29. Rb1 {[%emt 0:02:12]} e4 {[%emt 0:00:17]} 30. f4 {[%emt 0:00:51]} e3 {[%emt 0:00:17]} 31. Qf1 {[%emt 0:00:04]} Qe6 {[%emt 0:00:45]} 32. Ra1 {[%emt 0:00:38]} Qb3 {[%emt 0:00:50]} 33. Rdb1 {[%emt 0:00:51]} Qd5+ {[%emt 0:00:31]} 34. Qg2 {[%emt 0:00:07]} Qxg2+ {[%emt 0:01:12]} 35. Kxg2 {[%emt 0:00:02]} Nc2 {[%emt 0:00:11]} 0-1